bitfinex/quotes_SOLUSD_20240725
["timestamp","ask_amount","ask_price","bid_price","bid_amount"]
[1721879119120,6.46343035,169.91,169.8,6.1652]
[1721879119794,5.8858,169.9,169.8,6.1652]
[1721879120204,0.57783035,169.89,169.8,6.1652]
[1721879120800,0.57783035,169.91,169.8,6.1652]
[1721879121000,6.46333035,169.91,169.85,5.8874]
[1721879121992,0.57783035,169.91,169.8,6.1652]
[1721879122225,0.57783035,169.97,169.81,65.0]
[1721879122437,0.57783035,169.97,169.82,1.17711357]
[1721879122610,0.57783035,170.01,169.91,5.8854]
[1721879122811,0.57783035,170.01,169.92,5.885]
[1721879122812,5.8831,169.98,169.92,5.885]
[1721879123000,2.93701081,170.01,169.83,1.17707791]
[1721879123202,0.57783035,170.01,169.94,5.8841]
[1721879123420,5.8824,170.0,169.93,5.8847]
[1721879123611,0.57783035,169.99,169.84,20.0]
[1721879123814,6.45983035,170.01,169.85,66.17680053]
[1721879124036,0.57783035,170.01,169.86,1.1768164]
[1721879124245,12.55728091,170.01,169.86,1.1768164]
[1721879124405,12.55728091,170.01,169.87,15.2475]
[1721879124604,12.55728091,170.01,169.95,5.884]
[1721879124824,6.09715056,170.01,169.96,5.8837]
[1721879125125,0.57783035,170.01,169.89,7.52994877]
[1721879125337,21.3740291,170.07,169.9,46.17671909]
[1721879125512,21.3740291,170.07,169.96,5.8837]
[1721879125710,5.882,170.01,169.9,45.0]
[1721879125910,0.57783035,170.0,169.89,6.3533]
[1721879126108,6.46013035,170.0,169.89,6.3533]
[1721879126625,5.8843,169.95,169.88,5.8864]
[1721879126826,45.57783035,169.94,169.82,6.3331]
[1721879127058,45.57783035,169.94,169.84,5.8876]
[1721879127332,45.57783035,169.94,169.86,5.8871]
[1721879127704,51.46253035,169.94,169.87,5.8868]
[1721879128122,2.35918046,169.99,169.88,1.17725975]
[1721879128313,20.57783035,170.06,169.83,21.17671774]
[1721879128615,20.57783035,170.06,169.84,45.0]
[1721879128818,14.7048,170.02,169.85,21.17704173]
[1721879129015,5.8844,169.94,169.85,21.17704173]
[1721879129230,5.8834,169.97,169.86,45.0]
[1721879129427,5.883,169.98,169.86,46.17691249]
[1721879129727,6.46083035,169.98,169.86,46.17691249]
[1721879129935,5.8826,170.0,169.86,46.17691249]
[1721879130103,6.46053035,169.99,169.93,5.8847]
[1721879130303,5.883,169.98,169.93,5.8847]
[1721879130538,5.882,170.01,169.86,46.17691249]
[1721879130836,5.882,170.01,169.95,5.8837]
[1721879131036,5.8823,170.0,169.95,5.8837]
[1721879131214,5.8818,170.02,169.96,5.8837]
[1721879131544,5.8826,170.0,169.88,1.17672301]
[1721879131714,5.8826,170.0,169.87,20.0]
[1721879131715,0.57783035,169.99,169.84,1.17671706]
[1721879131909,5.8837,169.96,169.84,1.17671706]
[1721879132226,6.46103035,169.98,169.78,22.36867011]
[1721879132429,0.57783035,169.98,169.85,1.17696865]
[1721879132607,0.57783035,169.98,169.92,5.885]
[1721879133218,5.8834,169.97,169.91,5.8854]
[1721879133515,5.8826,170.0,169.78,2.36867011]
[1721879133708,5.8833,169.98,169.92,5.8847]
[1721879133906,5.8827,169.99,169.93,5.8845]
[1721879134142,6.46083035,169.98,169.92,5.8851]
[1721879134433,0.57783035,169.98,169.92,5.8849]
[1721879134635,6.46103035,169.98,169.93,5.8847]
[1721879134832,6.46013035,170.0,169.94,5.8843]
[1721879135028,5.8827,169.99,169.94,5.8843]
[1721879135231,5.8827,169.99,169.93,5.8847]
[1721879136241,5.883,169.98,169.93,5.8847]
[1721879136448,5.883,169.98,169.92,5.8851]
[1721879137633,5.883,169.98,169.84,1.17693587]
[1721879137944,5.8827,169.99,169.93,5.8846]
[1721879138811,5.883,169.98,169.93,5.8846]
[1721879139719,5.8827,169.99,169.93,5.8846]
[1721879140041,0.57783035,170.01,169.84,1.17693587]
[1721879140341,5.8823,170.01,169.95,5.8839]
[1721879140916,5.8827,169.99,169.84,1.17693587]
[1721879141158,0.57783035,170.03,169.84,1.17693587]
[1721879141332,5.8834,169.97,169.84,1.17693587]
[1721879141538,5.8839,169.96,169.84,1.17693587]
[1721879141725,5.884,169.96,169.9,5.8856]
[1721879141918,5.8837,169.96,169.9,5.8857]
[1721879142119,0.57783035,169.99,169.84,1.17693587]
[1721879142339,5.883,169.98,169.93,5.8847]
[1721879142722,5.883,169.98,169.84,1.17693587]
[1721879143434,5.883,169.98,169.92,5.8848]
[1721879143631,0.57783035,170.01,169.93,5.8845]
[1721879143835,0.57783035,170.0,169.84,1.17693587]
[1721879144037,0.57783035,170.0,169.84,21.17693587]
[1721879144238,0.57783035,170.0,169.92,5.885]
[1721879144239,5.8833,169.98,169.92,5.885]
[1721879144638,6.46033035,170.0,169.86,1.17691458]
[1721879144816,0.57783035,170.0,169.94,5.8843]
[1721879145017,0.57783035,170.0,169.9,5.8854]
[1721879145321,5.8833,169.98,169.92,5.8851]
[1721879145530,5.8834,169.97,169.92,5.8851]
[1721879146036,5.8827,169.99,169.93,5.8846]
[1721879146240,5.8836,169.97,169.91,5.8852]
[1721879146444,5.8836,169.97,169.92,5.8849]
[1721879146640,5.8831,169.98,169.93,5.8846]
[1721879146937,6.46153035,169.97,169.91,5.8854]
[1721879147924,0.57783035,170.0,169.9,5.8858]
[1721879148251,5.884,169.95,169.89,5.8861]
[1721879148442,0.57783035,169.94,169.87,5.8865]
[1721879148628,5.885,169.93,169.87,5.8865]
[1721879149140,18.21783035,169.92,169.82,12.2213]
[1721879149945,5.8869,169.87,169.82,6.3331]
[1721879150112,0.57783035,169.86,169.78,6.0777]
[1721879150315,5.8879,169.84,169.78,6.0777]
[1721879150735,0.57783035,169.83,169.78,6.0777]
[1721879150931,5.8882,169.84,169.78,6.0777]
[1721879151247,6.46613035,169.83,169.78,6.0777]
[1721879151427,18.21783035,169.83,169.74,5.891]
[1721879151628,18.21783035,169.83,169.75,5.8909]
[1721879152015,0.57783035,169.83,169.73,22.1615846]
[1721879152219,23.5277,169.85,169.79,5.8894]
[1721879152440,17.64,169.85,169.79,5.8894]
[1721879152643,17.64,169.85,169.78,5.8899]
[1721879152969,5.8872,169.86,169.79,5.8893]
[1721879153137,5.8876,169.85,169.73,22.1615846]
[1721879153968,5.8876,169.85,169.79,5.8892]
[1721879154257,5.8876,169.85,169.73,22.1615846]
[1721879154258,17.64,169.87,169.74,1.1778082]
[1721879154440,0.57783035,169.86,169.73,23.33939362]
[1721879154638,0.57783035,169.86,169.73,22.1615846]
[1721879154867,17.64,169.88,169.81,5.8887]
[1721879154868,5.8868,169.87,169.81,5.8887]
[1721879155050,0.57783035,169.88,169.82,5.8885]
[1721879155248,0.57783035,169.9,169.74,1.17794641]
[1721879155443,0.57783035,169.89,169.74,1.17794641]
[1721879155636,0.57783035,169.88,169.74,1.17794641]
[1721879155860,32.91701081,169.91,169.74,66.17794641]
[1721879156357,5.8854,169.91,169.84,5.8875]
[1721879156557,0.57783035,169.9,169.82,5.8882]
[1721879156757,5.8865,169.88,169.82,5.8882]
[1721879157140,5.8865,169.88,169.74,66.17794641]
[1721879157141,5.8861,169.89,169.83,5.8881]
[1721879157550,17.64,169.91,169.74,66.17794641]
[1721879157766,18.21783035,169.91,169.74,21.17794641]
[1721879158147,17.64,169.89,169.74,21.17794641]
[1721879158459,0.57783035,169.88,169.74,21.17794641]
[1721879159151,5.8869,169.87,169.74,21.17794641]
[1721879159460,5.8869,169.87,169.81,5.8888]
[1721879159660,5.8869,169.87,169.75,45.0]
[1721879159661,0.57783035,169.88,169.82,5.8884]
[1721879159869,5.8868,169.87,169.75,45.0]
[1721879160072,5.8865,169.88,169.82,5.8885]
[1721879160276,6.46353035,169.91,169.84,5.8878]
[1721879160571,5.8859,169.9,169.84,5.8878]
[1721879160774,5.8861,169.89,169.83,5.8882]
[1721879161650,5.886,169.9,169.84,5.8878]
[1721879162252,5.8862,169.89,169.84,5.8878]
[1721879162458,6.67910431,169.94,169.77,1.17755729]
[1721879162755,5.8859,169.9,169.84,5.8876]
[1721879162950,17.64,169.94,169.77,1.17755729]
[1721879163275,305.0745,170.0,169.83,6.1594]
[1721879163459,18.21783035,169.99,169.91,5.8853]
[1721879163778,5.8838,169.96,169.84,1.17709913]
[1721879163975,5.8838,169.96,169.84,66.17709913]
[1721879164148,5.8838,169.96,169.91,5.8854]
[1721879164345,17.64,169.99,169.92,5.8851]
[1721879164548,17.64,169.99,169.84,66.17709913]
[1721879164774,5.883,169.98,169.92,5.8851]
[1721879165071,6.46083035,169.98,169.92,5.8851]
[1721879165273,6.46093035,169.98,169.92,5.8849]
[1721879165455,6.46093035,169.98,169.93,5.8847]
[1721879165646,0.57783035,169.98,169.93,5.8847]
[1721879165856,64.0642,170.0,169.84,66.17709913]
[1721879166152,5.8824,170.0,169.93,5.8844]
[1721879166379,0.57783035,170.01,169.91,5.8852]
[1721879166575,5.8832,169.98,169.91,5.8852]
[1721879166755,5.8832,169.98,169.92,5.8851]
[1721879166954,18.21783035,170.02,169.93,5.8847]
[1721879167349,0.57783035,170.01,169.91,5.8851]
[1721879167551,17.64,169.94,169.83,21.7881]
[1721879167751,18.21783035,169.93,169.83,21.7881]
[1721879168070,5.8858,169.9,169.83,21.7881]
[1721879168245,18.21783035,169.92,169.83,6.1594]
[1721879168649,5.8861,169.89,169.83,6.1594]
[1721879168873,5.8857,169.91,169.83,6.1594]
[1721879169075,17.64,169.93,169.83,6.1594]
[1721879169281,6.46393035,169.9,169.84,5.8878]
[1721879169645,0.57783035,169.92,169.83,6.1594]
[1721879170155,0.57783035,169.92,169.86,5.8871]
[1721879170357,18.21783035,169.94,169.86,5.8871]
[1721879171059,5.8848,169.93,169.87,5.8865]
[1721879171257,5.8841,169.95,169.9,5.8857]
[1721879171476,6.46193035,169.95,169.88,5.8861]
[1721879171675,5.8841,169.95,169.89,5.8859]
[1721879171981,0.57783035,169.94,169.83,6.1594]
[1721879172157,5.8844,169.94,169.89,5.8858]
[1721879172354,6.46283035,169.93,169.87,5.8865]
[1721879172561,6.46313035,169.92,169.83,6.1594]
[1721879172760,0.57783035,169.98,169.83,6.1594]
[1721879172985,5.8844,169.94,169.88,5.8861]
[1721879173281,17.64,169.96,169.89,5.8861]
[1721879173470,436.24568046,170.0,169.89,5.8861]
[1721879173471,0.57783035,169.95,169.89,5.8861]
[1721879173660,0.57783035,169.95,169.87,5.8865]
[1721879173861,5.8848,169.93,169.87,5.8865]
[1721879174080,5.8844,169.94,169.83,6.1594]
[1721879174380,0.57783035,169.95,169.83,6.1594]
[1721879174584,0.57783035,169.98,169.83,7.33657234]
[1721879174780,52.91,169.97,169.86,5.8868]
[1721879174961,0.57783035,169.96,169.86,5.8868]
[1721879175284,0.57783035,169.95,169.83,6.1594]
[1721879175464,18.21783035,169.95,169.83,6.1594]
[1721879175661,5.8858,169.9,169.83,6.1594]
[1721879175962,5.8858,169.9,169.84,5.8875]
[1721879176183,5.8861,169.89,169.84,5.8875]
[1721879176354,5.8858,169.9,169.85,5.8874]
[1721879177182,5.8858,169.9,169.84,5.8878]
[1721879177568,0.57783035,169.89,169.83,6.1594]
[1721879177758,0.57783035,169.89,169.78,15.51]
[1721879177964,5.8868,169.87,169.81,5.8888]
[1721879178165,0.57783035,169.86,169.75,6.3086]
[1721879178375,5.8886,169.82,169.75,6.3086]
[1721879178722,5.8879,169.84,169.78,5.8898]
[1721879178860,45.0,169.87,169.75,6.3086]
[1721879179058,5.8872,169.86,169.8,5.8889]
[1721879179488,5.8876,169.85,169.75,6.3086]
[1721879179656,5.8879,169.84,169.75,6.3086]
[1721879179860,0.57783035,169.85,169.75,6.3086]
[1721879180060,5.8872,169.86,169.75,6.3086]
[1721879180263,5.8872,169.86,169.81,5.8888]
[1721879180465,0.57783035,169.87,169.75,7.48628179]
[1721879180789,5.8867,169.88,169.82,5.8885]
[1721879180980,18.21783035,169.91,169.83,5.888]
[1721879181184,5.8865,169.88,169.82,5.8885]
[1721879181585,5.8865,169.88,169.83,5.8881]
[1721879181786,5.8865,169.88,169.75,7.48628179]
[1721879181787,5.8865,169.88,169.82,5.8885]
[1721879181988,17.64,169.88,169.8,5.8892]
[1721879182501,17.64,169.85,169.76,5.8906]
[1721879182702,0.57783035,169.84,169.76,5.8906]
[1721879183492,5.8889,169.82,169.76,5.8906]
[1721879183690,0.57783035,169.82,169.77,5.8901]
[1721879183889,0.57783035,169.83,169.75,6.3086]
[1721879184095,17.64,169.86,169.77,5.8903]
[1721879184096,6.46643035,169.82,169.77,5.8903]
[1721879184292,6.46643035,169.82,169.75,5.8907]
[1721879184498,5.888,169.84,169.73,0.8074846]
[1721879184700,0.57783035,169.83,169.78,5.8899]
[1721879184895,6.46603035,169.83,169.78,5.8899]
[1721879185411,45.0,169.87,169.79,5.8893]
[1721879185412,6.46553035,169.85,169.79,5.8893]
[1721879185595,6.46553035,169.85,169.73,1.98543914]
[1721879185596,0.57783035,169.85,169.8,5.8892]
[1721879185914,0.57783035,169.87,169.73,0.8074846]
[1721879186613,5.8878,169.84,169.79,5.8896]
[1721879187710,17.64,169.88,169.79,5.8896]
[1721879187711,5.8875,169.85,169.79,5.8896]
[1721879187912,5.8875,169.85,169.73,0.8074846]
[1721879187913,17.64,169.88,169.73,0.8074846]
[1721879188098,5.8882,169.84,169.77,5.8903]
[1721879188407,5.8878,169.85,169.78,5.8899]
[1721879188610,5.8889,169.82,169.76,5.8904]
[1721879188803,5.8886,169.82,169.77,5.8899]
[1721879189007,17.64,169.85,169.73,0.8074846]
[1721879189206,17.64,169.85,169.78,5.8899]
[1721879189395,17.64,169.85,169.73,0.8074846]
[1721879189596,32.358,169.86,169.73,0.8074846]
[1721879189821,5.8891,169.81,169.75,5.8909]
[1721879190118,17.64,169.85,169.73,0.8074846]
[1721879190317,59.4159,169.87,169.73,0.8074846]
[1721879190318,47.62,169.83,169.73,0.8074846]
[1721879190816,29.98,169.83,169.73,0.8074846]
[1721879191015,17.64,169.82,169.73,0.8074846]
[1721879191233,28.47579629,169.89,169.73,0.8074846]
[1721879191234,6.3867,169.88,169.73,0.8074846]
[1721879191517,36.3667,169.88,169.73,0.8074846]
[1721879191724,29.98,169.88,169.83,5.8879]
[1721879191890,5.886,169.9,169.83,5.8881]
[1721879192096,412.7256,169.91,169.83,5.8881]
[1721879192316,406.84,169.91,169.75,6.4341]
[1721879192522,5.8881,169.9,169.76,46.17760042]
[1721879192702,5.8881,169.9,169.78,16.4286]
[1721879193030,5.8855,169.91,169.84,5.8875]
[1721879193213,5.8858,169.9,169.82,5.8882]
[1721879193527,5.8858,169.9,169.79,45.0]
[1721879193528,35.8652,169.92,169.85,5.8875]
[1721879193704,5.8847,169.94,169.86,5.8871]
[1721879194054,29.98,169.96,169.88,5.8864]
[1721879194343,29.98,169.96,169.84,6.3846]
[1721879194998,5.8844,169.94,169.84,6.3846]
[1721879195610,405.1433,169.97,169.88,5.8864]
[1721879196014,405.1433,169.97,169.89,5.886]
[1721879196229,405.1433,169.97,169.87,5.8865]
[1721879196831,5.8839,169.96,169.89,5.886]
[1721879197631,5.8839,169.96,169.85,1.17704769]
[1721879197632,5.8842,169.95,169.85,1.17704769]
[1721879197818,5.8842,169.95,169.84,7.56164515]
[1721879198138,389.2,169.97,169.9,5.8857]
[1721879198344,5.8837,169.96,169.84,6.3846]
[1721879198639,389.2,169.97,169.88,5.8862]
[1721879198826,6.3846,169.98,169.88,5.8862]
[1721879199216,5.8845,169.94,169.88,5.8862]
[1721879199436,5.8848,169.93,169.84,6.3846]
[1721879199911,5.884,169.95,169.88,5.8864]
[1721879200115,5.8834,169.97,169.84,7.56172848]
[1721879200353,5.8841,169.95,169.84,6.3846]
[1721879200943,5.8838,169.96,169.89,5.886]
[1721879201118,6.3846,169.98,169.84,6.3846]
[1721879201524,6.13723248,170.0,169.85,16.114]
[1721879201925,16.75104161,170.0,169.85,16.114]
[1721879202139,5.8851,169.92,169.85,16.114]
[1721879202325,31.45734161,170.0,169.84,12.2722]
[1721879202326,14.7095,169.96,169.84,6.3846]
[1721879202514,5.8844,169.95,169.88,5.8864]
[1721879202714,5.8838,169.96,169.84,7.56180012]
[1721879202918,6.13723248,170.0,169.84,7.56180012]
[1721879203119,5.8831,169.98,169.92,5.885]
[1721879203542,12.01983248,170.0,169.93,5.8847]
[1721879203741,6.13723248,170.0,169.91,5.8851]
[1721879203917,406.84,170.01,169.9,21.7429]
[1721879203918,389.2,170.01,169.9,21.7429]
[1721879204335,5.8833,169.98,169.9,21.7429]
[1721879204538,5.8833,169.98,169.92,5.8849]
[1721879205139,26.58297507,170.04,169.93,6.2975]
[1721879205140,389.2,170.04,169.93,6.2975]
[1721879205337,389.2,170.04,169.93,7.47437535]
[1721879205553,395.33867896,170.04,169.93,7.47437535]
[1721879206056,5.8813,170.03,169.93,7.47437535]
[1721879206347,5.8813,170.03,169.93,6.2975]
[1721879206647,395.33867896,170.04,169.93,7.4741108]
[1721879207018,7.42390473,170.11,169.94,17.2072357]
[1721879207220,14.6945,170.14,169.94,17.2072357]
[1721879207221,5.8792,170.1,169.96,6.5062]
[1721879207445,16.48642116,170.12,169.97,66.17607119]
[1721879207626,5.8785,170.11,169.97,66.17607119]
[1721879208516,5.8789,170.1,169.97,66.17607119]
[1721879208945,5.8793,170.09,169.97,66.17607119]
[1721879209147,5.8787,170.11,169.97,66.17607119]
[1721879209315,5.878,170.13,169.98,6.5715]
[1721879209520,5.878,170.13,170.0,16.5255]
[1721879209741,5.8783,170.12,170.01,1.17589785]
[1721879209942,5.8759,170.19,170.02,7.74733214]
[1721879210148,5.8759,170.19,170.03,20.0]
[1721879210346,17.64,170.2,170.04,46.17549989]
[1721879210550,10.60445802,170.19,170.04,45.0]
[1721879210852,6.13515127,170.21,170.06,22.4384]
[1721879211023,405.2301,170.25,170.07,66.17531971]
[1721879211225,5.8771,170.15,170.07,65.0]
[1721879211421,50.80402318,170.23,170.06,22.4384]
[1721879211620,5.8767,170.17,170.06,22.4384]
[1721879211929,50.80402318,170.23,170.06,22.4384]
[1721879212232,5.8761,170.18,170.06,22.4384]
[1721879212429,36.11722318,170.23,170.07,1.17552119]
[1721879212648,36.11722318,170.23,170.08,1.17538441]
[1721879212649,6.13722318,170.23,170.08,1.17538441]
[1721879212831,389.2,170.25,170.09,6.3519]
[1721879213035,389.2,170.31,170.1,66.1749871]
[1721879213338,5.8734,170.26,170.11,1.17498851]
[1721879213723,5.8734,170.26,170.13,6.1855]
[1721879213919,5.8734,170.26,170.14,45.0]
[1721879214532,5.8734,170.26,170.15,1.17498186]
[1721879214736,6.13517003,170.3,170.14,46.17498173]
[1721879214943,5.873,170.27,170.14,46.17498173]
[1721879215135,5.873,170.27,170.15,1.17494984]
[1721879215658,6.13517003,170.3,170.15,1.17494984]
[1721879215855,5.873,170.27,170.15,21.17494984]
[1721879216052,6.13517003,170.3,170.16,45.0]
[1721879216228,5.8727,170.28,170.17,1.17484924]
[1721879216429,5.8727,170.28,170.18,1.17478103]
[1721879217565,6.13517003,170.3,170.19,6.4044]
[1721879218256,6.13517003,170.3,170.2,1.17478123]
[1721879219354,6.13517003,170.3,170.21,15.1631]
[1721879219534,6.13517003,170.3,170.21,16.33774344]
[1721879219857,0.8074846,170.33,170.22,45.0]
[1721879220028,0.8074846,170.33,170.23,1.17440632]
[1721879220232,0.8074846,170.33,170.21,15.1631]
[1721879220430,5.8719,170.31,170.21,15.1631]
[1721879220652,6.6786846,170.33,170.21,15.1631]
[1721879220956,5.8716,170.32,170.21,16.33767344]
[1721879221154,0.8074846,170.33,170.21,16.33767344]
[1721879221458,0.8074846,170.33,170.22,45.0]
[1721879221642,0.8074846,170.33,170.23,1.17441997]
[1721879221842,0.8074846,170.33,170.22,46.17443705]
[1721879222458,5.8713,170.32,170.22,46.17443705]
[1721879222763,0.8074846,170.33,170.22,46.17443705]
[1721879224072,0.8074846,170.33,170.23,26.1611]
[1721879224360,0.8074846,170.33,170.24,46.17430986]
[1721879224925,6.6785846,170.33,170.24,46.17430986]
[1721879225150,5.8714,170.32,170.24,45.0]
[1721879225358,6.6783846,170.33,170.23,26.1611]
[1721879225660,0.8074846,170.33,170.23,26.1611]
[1721879226159,0.8074846,170.33,170.23,6.1611]
[1721879226359,5.872,170.3,170.23,6.1611]
[1721879226539,5.8724,170.29,170.23,6.1611]
[1721879227461,5.8719,170.31,170.23,6.1611]
[1721879227869,5.8731,170.27,170.23,6.1611]
[1721879228578,5.8738,170.25,170.21,15.1631]
[1721879228776,403.8784,170.32,170.19,6.6258]
[1721879228777,17.64,170.28,170.19,6.6258]
[1721879229077,17.64,170.26,170.19,6.6258]
[1721879229375,17.64,170.26,170.15,22.076]
[1721879229376,5.8754,170.2,170.15,22.076]
[1721879229752,62.64,170.25,170.15,22.076]
[1721879229952,17.64,170.27,170.15,22.076]
[1721879230161,403.8804,170.3,170.15,22.076]
[1721879230685,410.02269228,170.3,170.15,22.076]
[1721879230850,410.02269228,170.3,170.16,45.0]
[1721879231050,17.64,170.29,170.16,45.0]
[1721879231295,17.64,170.29,170.15,22.076]
[1721879231454,5.8754,170.2,170.15,22.076]
[1721879231650,436.82,170.26,170.15,22.076]
[1721879231866,5.8758,170.19,170.15,6.6258]
[1721879232287,17.64,170.21,170.15,6.6258]
[1721879232454,5.8763,170.18,170.1,16.4802]
[1721879232875,5.8765,170.17,170.1,16.4802]
[1721879233080,5.876,170.19,170.1,16.4802]
[1721879233680,5.8754,170.2,170.1,16.4802]
[1721879233985,389.2,170.23,170.1,16.4802]
[1721879234158,406.87,170.23,170.1,16.4802]
[1721879234366,5.8761,170.18,170.1,16.4802]
[1721879234666,5.8764,170.17,170.1,16.4802]
[1721879234859,5.8761,170.18,170.1,16.4802]
[1721879235060,17.67,170.21,170.1,16.4802]
[1721879235280,5.8769,170.16,170.1,16.4802]
[1721879235483,45.0,170.2,170.1,16.4802]
[1721879235789,17.67,170.22,170.1,16.4802]
[1721879235979,5.8759,170.19,170.1,16.4802]
[1721879236381,5.8762,170.18,170.1,16.4802]
[1721879236582,5.8776,170.14,170.1,16.4802]
[1721879237379,5.8771,170.15,170.1,16.4802]
[1721879237590,5.8782,170.12,170.1,16.4802]
[1721879237766,17.67,170.17,170.09,6.2037]
[1721879237979,17.67,170.15,170.09,6.2037]
[1721879238172,32.3637,170.15,170.05,6.2584]
[1721879238482,32.3637,170.15,169.94,6.12673911]
[1721879238483,5.88,170.07,170.01,6.2584]
[1721879238654,5.8813,170.04,170.01,6.2584]
[1721879238855,424.62,170.13,170.01,6.2584]
[1721879238856,17.67,170.09,170.01,6.2584]
[1721879239082,5.8803,170.06,170.01,6.2584]
[1721879239284,17.67,170.09,170.01,6.2584]
[1721879239785,17.67,170.12,170.01,6.2584]
[1721879240080,403.8947,170.13,170.01,6.2584]
[1721879240081,5.8802,170.07,170.01,6.2584]
[1721879240288,5.8804,170.06,170.01,6.2584]
[1721879240597,5.8806,170.05,170.01,6.2584]
[1721879240885,5.8802,170.07,170.01,6.2584]
[1721879241265,5.8803,170.06,170.01,6.2584]
[1721879241693,5.8807,170.05,170.01,6.2584]
[1721879242063,5.8802,170.07,170.01,6.2584]
[1721879242879,5.8795,170.09,170.01,6.2584]
[1721879243090,6.1260993,170.11,170.01,6.2584]
[1721879243401,17.67,170.12,170.01,6.2584]
[1721879243987,5.8796,170.08,170.01,6.2584]
[1721879244185,5.8792,170.1,170.01,6.2584]
[1721879244389,17.67,170.13,170.01,6.2584]
[1721879244595,6.12184936,170.14,170.01,6.2584]
[1721879244797,6.12184936,170.14,170.02,1.17596295]
[1721879244977,6.12184936,170.14,170.01,6.2584]
[1721879245182,11.99964936,170.14,170.02,46.17591961]
[1721879245381,5.8779,170.13,170.02,46.17591961]
[1721879246675,5.8775,170.14,170.02,46.17591961]
[1721879246877,389.2,170.16,170.04,16.6186]
[1721879247083,389.2,170.16,170.05,46.17558598]
[1721879247287,389.2,170.16,170.05,45.0]
[1721879247486,5.8779,170.13,170.05,45.0]
[1721879247689,5.8775,170.15,170.05,45.0]
[1721879249005,395.0768,170.16,170.05,46.17571978]
[1721879249487,5.8766,170.17,170.06,6.4987]
[1721879249688,5.8768,170.16,170.07,65.0]
[1721879251897,5.8772,170.15,170.06,6.4987]
[1721879252093,17.67,170.21,170.06,6.4987]
[1721879252396,29.93,170.17,170.06,6.4987]
[1721879252580,5.8758,170.19,170.07,46.17560315]
[1721879253307,47.6,170.2,170.07,46.17547139]
[1721879253828,5.8765,170.17,170.07,45.0]
[1721879254184,29.93,170.17,170.06,6.4987]
[1721879254382,62.2913,170.17,170.06,6.4987]
[1721879254684,29.93,170.17,170.07,1.17575083]
[1721879255093,29.93,170.2,170.06,7.67423463]
[1721879255708,5.8761,170.19,170.07,45.0]
[1721879255909,5.8761,170.19,170.08,1.17546607]
[1721879256108,29.93,170.2,170.07,45.0]
[1721879256703,47.6,170.2,170.07,45.0]
[1721879256997,20.81104319,170.22,170.06,6.4987]
[1721879256998,29.93,170.17,170.06,6.4987]
[1721879257193,5.8771,170.15,170.06,6.4987]
[1721879257605,5.8768,170.16,170.07,45.0]
[1721879258029,29.93,170.2,170.08,1.17559294]
[1721879258229,6.12404319,170.22,170.09,22.0185]
[1721879258396,29.93,170.23,170.1,46.17528048]
[1721879258600,29.93,170.23,170.11,1.17520434]
[1721879258914,29.93,170.26,170.11,21.17520434]
[1721879259117,389.2,170.29,170.13,22.0185]
[1721879259314,5.8729,170.28,170.15,6.556]
[1721879259627,30.7374846,170.33,170.18,6.556]
[1721879259800,5.8716,170.31,170.19,66.17458131]
[1721879260123,30.7374846,170.33,170.2,6.556]
[1721879260318,30.7374846,170.33,170.21,46.17456438]
[1721879260512,5.8716,170.32,170.21,46.17456438]
[1721879260927,5.8717,170.31,170.21,46.17456438]
[1721879262621,0.8074846,170.33,170.21,45.0]
[1721879263223,5.8719,170.3,170.21,45.0]
[1721879263418,5.8716,170.32,170.21,46.1746165]
[1721879263817,6.6786846,170.33,170.22,16.4321]
[1721879264022,6.6786846,170.33,170.23,45.0]
[1721879264221,6.6786846,170.33,170.24,6.2199]
[1721879264908,0.8074846,170.33,170.24,6.2199]
[1721879265101,5.8716,170.32,170.24,6.2199]